[Event "Titled Tuesday Blitz October 31 Late 2023"]
[White "Bilan, Danila"]
[Black "Fominykh, Maria"]
[WhiteFideId "24161918"]
[BlackFideId "4142411"]
[WhiteElo "2480"]
[BlackElo "2284"]
[Result "0-1"]
[Round "2"]
[TimeControl "180+1"]
[Date "2023.10.31"]
[WhiteClock "0:00:00"]
[BlackClock "0:00:10"]
[Board "137"]

1. d4 {[%clk 0:03:00]}  Nf6 {[%clk 0:02:59]} 2. Nf3 {[%clk 0:03:00]}  g6 {[%clk 0:02:59]} 3. Bg5 {[%clk 0:02:59]}  Bg7 {[%clk 0:02:59]} 4. c3 {[%clk 0:02:59]}  d6 {[%clk 0:03:00]} 5. Nbd2 {[%clk 0:02:59]}  Nbd7 {[%clk 0:03:00]} 6. e4 {[%clk 0:02:59]}  e5 {[%clk 0:03:00]} 7. Bc4 {[%clk 0:02:56]}  h6 {[%clk 0:03:00]} 8. Bh4 {[%clk 0:02:55]}  c6 {[%clk 0:03:00]} 9. O-O {[%clk 0:02:54]}  O-O {[%clk 0:02:54]} 10. a4 {[%clk 0:02:52]}  Qc7 {[%clk 0:02:51]} 11. Qc2 {[%clk 0:02:45]}  Nh5 {[%clk 0:02:43]} 12. Rad1 {[%clk 0:02:36]}  a6 {[%clk 0:02:34]} 13. Rfe1 {[%clk 0:02:24]}  b5 {[%clk 0:02:34]} 14. Bb3 {[%clk 0:02:16]}  Ndf6 {[%clk 0:02:17]} 15. Nf1 {[%clk 0:01:58]}  Bg4 {[%clk 0:02:07]} 16. Ne3 {[%clk 0:01:22]}  Bxf3 {[%clk 0:02:05]} 17. gxf3 {[%clk 0:01:22]}  Qc8 {[%clk 0:01:56]} 18. Bg3 {[%clk 0:01:16]}  Re8 {[%clk 0:01:40]} 19. dxe5 {[%clk 0:01:09]}  dxe5 {[%clk 0:01:40]} 20. Rd2 {[%clk 0:00:50]}  Nxg3 {[%clk 0:01:25]} 21. hxg3 {[%clk 0:00:48]}  h5 {[%clk 0:01:22]} 22. Kg2 {[%clk 0:00:46]}  Bh6 {[%clk 0:01:19]} 23. Rd6 {[%clk 0:00:42]}  Kg7 {[%clk 0:01:12]} 24. Red1 {[%clk 0:00:26]}  Ra7 {[%clk 0:00:54]} 25. Qe2 {[%clk 0:00:20]}  Rd7 {[%clk 0:00:44]} 26. axb5 {[%clk 0:00:19]}  axb5 {[%clk 0:00:43]} 27. Nc2 {[%clk 0:00:19]}  Rxd6 {[%clk 0:00:38]} 28. Rxd6 {[%clk 0:00:20]}  Rd8 {[%clk 0:00:38]} 29. Qd3 {[%clk 0:00:20]}  Re8 {[%clk 0:00:26]} 30. Nb4 {[%clk 0:00:19]}  c5 {[%clk 0:00:26]} 31. Nd5 {[%clk 0:00:17]}  c4 {[%clk 0:00:24]} 32. Qd1 {[%clk 0:00:08]}  Nxd5 {[%clk 0:00:23]} 33. Qxd5 {[%clk 0:00:07]}  cxb3 {[%clk 0:00:23]} 34. Rd7 {[%clk 0:00:07]}  Rf8 {[%clk 0:00:22]} 35. Qxe5+ {[%clk 0:00:07]}  Kg8 {[%clk 0:00:22]} 36. Qxb5 {[%clk 0:00:07]}  Qb8 {[%clk 0:00:19]} 37. Qd5 {[%clk 0:00:06]}  Bg7 {[%clk 0:00:18]} 38. Rb7 {[%clk 0:00:05]}  Qc8 {[%clk 0:00:16]} 39. Qxb3 {[%clk 0:00:06]}  Qd8 {[%clk 0:00:14]} 40. Qd5 {[%clk 0:00:06]}  Qc8 {[%clk 0:00:14]} 41. c4 {[%clk 0:00:04]}  h4 {[%clk 0:00:14]} 42. b4 {[%clk 0:00:03]}  h3+ {[%clk 0:00:14]} 43. Kh2 {[%clk 0:00:03]}  Bf6 {[%clk 0:00:14]} 44. c5 {[%clk 0:00:03]}  Kg7 {[%clk 0:00:14]} 45. e5 {[%clk 0:00:04]}  Bg5 {[%clk 0:00:14]} 46. f4 {[%clk 0:00:04]}  Bd8 {[%clk 0:00:13]} 47. e6 {[%clk 0:00:04]}  Bf6 {[%clk 0:00:11]} 48. e7 {[%clk 0:00:00]}  Re8 {[%clk 0:00:10]} 0-1


[Site "https://www.chess.com"]

[Event "Titled Tuesday Blitz October 31 Late 2023"]
[White "Jahnz, Fabian"]
[Black "Willy, Stephen"]
[WhiteFideId "4653300"]
[BlackFideId "30981468"]
[WhiteElo "2279"]
[BlackElo "2477"]
[Result "0-1"]
[Round "2"]
[TimeControl "180+1"]
[Date "2023.10.31"]
[WhiteClock "0:00:09"]
[BlackClock "0:00:17"]
[Board "138"]

1. e4 {[%clk 0:03:00]}  c6 {[%clk 0:02:57]} 2. Nc3 {[%clk 0:02:59]}  d5 {[%clk 0:02:56]} 3. Nf3 {[%clk 0:02:59]}  g5 {[%clk 0:02:54]} 4. Nxg5 {[%clk 0:02:55]}  b5 {[%clk 0:02:38]} 5. exd5 {[%clk 0:02:52]}  b4 {[%clk 0:02:38]} 6. Ne2 {[%clk 0:02:51]}  Qxd5 {[%clk 0:02:33]} 7. Nf3 {[%clk 0:02:51]}  Bg4 {[%clk 0:02:32]} 8. Ng3 {[%clk 0:02:51]}  Nf6 {[%clk 0:02:25]} 9. h3 {[%clk 0:02:49]}  Bxf3 {[%clk 0:02:23]} 10. Qxf3 {[%clk 0:02:50]}  Qxf3 {[%clk 0:02:23]} 11. gxf3 {[%clk 0:02:50]}  Nbd7 {[%clk 0:02:23]} 12. d4 {[%clk 0:02:46]}  O-O-O {[%clk 0:02:21]} 13. Be3 {[%clk 0:02:45]}  Nd5 {[%clk 0:02:18]} 14. Ba6+ {[%clk 0:02:44]}  Kc7 {[%clk 0:02:16]} 15. Ke2 {[%clk 0:02:39]}  e6 {[%clk 0:02:12]} 16. Rhg1 {[%clk 0:02:32]}  f5 {[%clk 0:02:11]} 17. Nh5 {[%clk 0:02:22]}  Bd6 {[%clk 0:02:07]} 18. f4 {[%clk 0:02:01]}  Rhg8 {[%clk 0:01:53]} 19. Bc4 {[%clk 0:01:58]}  N7b6 {[%clk 0:01:50]} 20. Bb3 {[%clk 0:01:53]}  Rg6 {[%clk 0:01:44]} 21. Kf3 {[%clk 0:01:19]}  Rh6 {[%clk 0:01:30]} 22. Rg7+ {[%clk 0:01:05]}  Rd7 {[%clk 0:01:27]} 23. Rxd7+ {[%clk 0:01:05]}  Nxd7 {[%clk 0:01:28]} 24. Bxd5 {[%clk 0:01:03]}  cxd5 {[%clk 0:01:23]} 25. Ng7 {[%clk 0:00:52]}  Rg6 {[%clk 0:01:21]} 26. Ne8+ {[%clk 0:00:52]}  Kc6 {[%clk 0:01:20]} 27. Nxd6 {[%clk 0:00:53]}  Kxd6 {[%clk 0:01:21]} 28. a3 {[%clk 0:00:51]}  Kc7 {[%clk 0:01:11]} 29. axb4 {[%clk 0:00:49]}  Kb7 {[%clk 0:01:11]} 30. b3 {[%clk 0:00:47]}  Nf6 {[%clk 0:01:04]} 31. c4 {[%clk 0:00:44]}  Rh6 {[%clk 0:00:58]} 32. Kg2 {[%clk 0:00:43]}  Ne4 {[%clk 0:00:55]} 33. Ra5 {[%clk 0:00:37]}  Rg6+ {[%clk 0:00:51]} 34. Kh2 {[%clk 0:00:35]}  dxc4 {[%clk 0:00:46]} 35. bxc4 {[%clk 0:00:34]}  Nc3 {[%clk 0:00:45]} 36. Re5 {[%clk 0:00:32]}  Ne2 {[%clk 0:00:44]} 37. d5 {[%clk 0:00:31]}  Ng1 {[%clk 0:00:44]} 38. f3 {[%clk 0:00:12]}  Nxf3+ {[%clk 0:00:44]} 39. Kh1 {[%clk 0:00:13]}  Nxe5 {[%clk 0:00:40]} 40. fxe5 {[%clk 0:00:14]}  exd5 {[%clk 0:00:36]} 41. cxd5 {[%clk 0:00:15]}  Rg3 {[%clk 0:00:35]} 42. Bf4 {[%clk 0:00:13]}  Rxh3+ {[%clk 0:00:35]} 43. Kg2 {[%clk 0:00:14]}  Rd3 {[%clk 0:00:33]} 44. e6 {[%clk 0:00:14]}  Kc8 {[%clk 0:00:28]} 45. e7 {[%clk 0:00:10]}  Kd7 {[%clk 0:00:26]} 46. d6 {[%clk 0:00:10]}  Rd4 {[%clk 0:00:24]} 47. Be3 {[%clk 0:00:10]}  Rxd6 {[%clk 0:00:20]} 48. Bxa7 {[%clk 0:00:10]}  Rd3 {[%clk 0:00:17]} 49. Bc5 {[%clk 0:00:11]}  h5 {[%clk 0:00:16]} 50. b5 {[%clk 0:00:11]}  Rd5 {[%clk 0:00:16]} 51. Ba3 {[%clk 0:00:06]}  Rxb5 {[%clk 0:00:17]} 52. Bc1 {[%clk 0:00:05]}  Kxe7 {[%clk 0:00:16]} 53. Bg5+ {[%clk 0:00:06]}  Kf7 {[%clk 0:00:16]} 54. Bh4 {[%clk 0:00:07]}  Ke6 {[%clk 0:00:16]} 55. Bg5 {[%clk 0:00:07]}  Ke5 {[%clk 0:00:17]} 56. Kf3 {[%clk 0:00:07]}  Rb3+ {[%clk 0:00:16]} 57. Kf2 {[%clk 0:00:08]}  Ke4 {[%clk 0:00:17]} 58. Bh6 {[%clk 0:00:08]}  f4 {[%clk 0:00:17]} 59. Kf1 {[%clk 0:00:09]}  Rb2 {[%clk 0:00:17]} 60. Bg5 {[%clk 0:00:08]}  Kf3 {[%clk 0:00:17]} 61. Kg1 {[%clk 0:00:09]}  Rg2+ {[%clk 0:00:17]} 62. Kh1 {[%clk 0:00:08]}  Rxg5 {[%clk 0:00:18]} 63. Kh2 {[%clk 0:00:09]}  Ke4 {[%clk 0:00:17]} 64. Kh1 {[%clk 0:00:09]}  f3 {[%clk 0:00:17]} 0-1


[Site "https://www.chess.com"]

[Event "Titled Tuesday Blitz October 31 Late 2023"]
[White "Cardozo Munar, Carlos Eduardo"]
[Black "Kunin, Vitaly"]
[WhiteFideId "4409477"]
[BlackFideId "4128737"]
[WhiteElo "2264"]
[BlackElo "2467"]
[Result "0-1"]
[Round "2"]
[TimeControl "180+1"]
[Date "2023.10.31"]
[WhiteClock "0:00:47"]
[BlackClock "0:02:06"]
[Board "143"]

1. d4 {[%clk 0:02:59]}  d5 {[%clk 0:02:59]} 2. c3 {[%clk 0:02:58]}  c5 {[%clk 0:02:58]} 3. Nf3 {[%clk 0:02:57]}  e6 {[%clk 0:02:54]} 4. e3 {[%clk 0:02:48]}  f5 {[%clk 0:02:52]} 5. h3 {[%clk 0:02:48]}  Nf6 {[%clk 0:02:53]} 6. Bd3 {[%clk 0:02:48]}  Nc6 {[%clk 0:02:53]} 7. g4 {[%clk 0:02:48]}  g6 {[%clk 0:02:50]} 8. Nbd2 {[%clk 0:02:48]}  Bd6 {[%clk 0:02:50]} 9. dxc5 {[%clk 0:02:48]}  Bxc5 {[%clk 0:02:50]} 10. gxf5 {[%clk 0:02:48]}  gxf5 {[%clk 0:02:50]} 11. Nb3 {[%clk 0:02:47]}  Bb6 {[%clk 0:02:49]} 12. Nbd4 {[%clk 0:02:47]}  Bd7 {[%clk 0:02:48]} 13. a4 {[%clk 0:02:44]}  Qe7 {[%clk 0:02:47]} 14. Nxc6 {[%clk 0:02:38]}  bxc6 {[%clk 0:02:44]} 15. Ne5 {[%clk 0:02:37]}  Bc7 {[%clk 0:02:42]} 16. Nxd7 {[%clk 0:02:37]}  Qxd7 {[%clk 0:02:41]} 17. a5 {[%clk 0:02:36]}  O-O {[%clk 0:02:37]} 18. Rg1+ {[%clk 0:02:36]}  Kh8 {[%clk 0:02:37]} 19. Qf3 {[%clk 0:02:36]}  Rg8 {[%clk 0:02:37]} 20. Rxg8+ {[%clk 0:02:22]}  Rxg8 {[%clk 0:02:36]} 21. Ke2 {[%clk 0:02:23]}  Ne4 {[%clk 0:02:34]} 22. Bd2 {[%clk 0:02:19]}  c5 {[%clk 0:02:30]} 23. c4 {[%clk 0:01:37]}  Be5 {[%clk 0:02:28]} 24. Rb1 {[%clk 0:01:28]}  Nxd2 {[%clk 0:02:27]} 25. Kxd2 {[%clk 0:01:18]}  dxc4 {[%clk 0:02:27]} 26. Qe2 {[%clk 0:01:16]}  Rd8 {[%clk 0:02:25]} 27. Ke1 {[%clk 0:01:14]}  Qxd3 {[%clk 0:02:22]} 28. Qxd3 {[%clk 0:01:14]}  cxd3 {[%clk 0:02:22]} 29. Kd2 {[%clk 0:01:15]}  c4 {[%clk 0:02:19]} 30. Rc1 {[%clk 0:01:12]}  Rc8 {[%clk 0:02:18]} 31. b3 {[%clk 0:01:11]}  c3+ {[%clk 0:02:07]} 32. Kxd3 {[%clk 0:01:12]}  Rd8+ {[%clk 0:02:08]} 33. Kc4 {[%clk 0:01:04]}  Rd2 {[%clk 0:02:09]} 34. f4 {[%clk 0:01:03]}  Bf6 {[%clk 0:02:09]} 35. b4 {[%clk 0:00:59]}  c2 {[%clk 0:02:04]} 36. Kb3 {[%clk 0:00:59]}  Rd3+ {[%clk 0:02:05]} 37. Kxc2 {[%clk 0:00:59]}  Rc3+ {[%clk 0:02:05]} 38. Kd2 {[%clk 0:00:59]}  Rxc1 {[%clk 0:02:06]} 39. Kxc1 {[%clk 0:00:59]}  Bc3 {[%clk 0:02:06]} 40. b5 {[%clk 0:00:53]}  Bxa5 {[%clk 0:02:06]} 41. Kc2 {[%clk 0:00:54]}  Bb6 {[%clk 0:02:06]} 42. Kd3 {[%clk 0:00:54]}  Kg7 {[%clk 0:02:06]} 43. e4 {[%clk 0:00:47]}  Kg6 {[%clk 0:02:06]} 0-1


[Site "https://www.chess.com"]

[Event "Titled Tuesday Blitz October 31 Late 2023"]
[White "Slavin, Alexey"]
[Black "Mmukka"]
[WhiteFideId "24104388"]
[WhiteElo "2258"]
[BlackElo "2466"]
[Result "0-1"]
[Round "2"]
[TimeControl "180+1"]
[Date "2023.10.31"]
[WhiteClock "0:00:12"]
[BlackClock "0:00:28"]
[Board "144"]

1. e4 {[%clk 0:02:59]}  c5 {[%clk 0:02:58]} 2. g3 {[%clk 0:02:58]}  d5 {[%clk 0:02:50]} 3. exd5 {[%clk 0:02:58]}  Qxd5 {[%clk 0:02:49]} 4. Qf3 {[%clk 0:02:59]}  Qxf3 {[%clk 0:02:45]} 5. Nxf3 {[%clk 0:03:00]}  Nc6 {[%clk 0:02:44]} 6. a3 {[%clk 0:02:59]}  Nf6 {[%clk 0:02:42]} 7. d3 {[%clk 0:02:58]}  g6 {[%clk 0:02:29]} 8. Bg2 {[%clk 0:02:58]}  Bg7 {[%clk 0:02:29]} 9. Nc3 {[%clk 0:02:57]}  O-O {[%clk 0:02:28]} 10. O-O {[%clk 0:02:58]}  h6 {[%clk 0:02:21]} 11. Be3 {[%clk 0:02:56]}  Nd7 {[%clk 0:02:09]} 12. Na4 {[%clk 0:02:46]}  Nd4 {[%clk 0:01:59]} 13. Nxd4 {[%clk 0:02:00]}  cxd4 {[%clk 0:02:00]} 14. Bd2 {[%clk 0:02:00]}  Rb8 {[%clk 0:01:58]} 15. b4 {[%clk 0:01:58]}  b5 {[%clk 0:01:57]} 16. Nb2 {[%clk 0:01:46]}  Bb7 {[%clk 0:01:56]} 17. Rfe1 {[%clk 0:01:45]}  e6 {[%clk 0:01:52]} 18. a4 {[%clk 0:01:39]}  Bxg2 {[%clk 0:01:48]} 19. Kxg2 {[%clk 0:01:39]}  Rfc8 {[%clk 0:01:48]} 20. Rec1 {[%clk 0:01:34]}  a6 {[%clk 0:01:32]} 21. axb5 {[%clk 0:01:28]}  axb5 {[%clk 0:01:32]} 22. Nd1 {[%clk 0:01:15]}  Rb7 {[%clk 0:01:29]} 23. c4 {[%clk 0:01:06]}  dxc3 {[%clk 0:01:27]} 24. Nxc3 {[%clk 0:01:04]}  Nb6 {[%clk 0:01:26]} 25. Ra6 {[%clk 0:00:57]}  Nd7 {[%clk 0:00:55]} 26. Ne4 {[%clk 0:00:54]}  Rxc1 {[%clk 0:00:53]} 27. Bxc1 {[%clk 0:00:54]}  Rc7 {[%clk 0:00:43]} 28. Be3 {[%clk 0:00:51]}  Ne5 {[%clk 0:00:39]} 29. Rd6 {[%clk 0:00:47]}  Bf8 {[%clk 0:00:37]} 30. Rd8 {[%clk 0:00:46]}  Kg7 {[%clk 0:00:32]} 31. Bb6 {[%clk 0:00:32]}  Rd7 {[%clk 0:00:29]} 32. Rxd7 {[%clk 0:00:25]}  Nxd7 {[%clk 0:00:29]} 33. Bc5 {[%clk 0:00:23]}  f5 {[%clk 0:00:29]} 34. Bxf8+ {[%clk 0:00:22]}  Kxf8 {[%clk 0:00:29]} 35. Nd6 {[%clk 0:00:22]}  Nb6 {[%clk 0:00:29]} 36. Nxb5 {[%clk 0:00:22]}  Nd5 {[%clk 0:00:30]} 37. Nd4 {[%clk 0:00:19]}  Nxb4 {[%clk 0:00:29]} 38. Nxe6+ {[%clk 0:00:20]}  Kf7 {[%clk 0:00:30]} 39. Nf4 {[%clk 0:00:20]}  g5 {[%clk 0:00:29]} 40. Nh5 {[%clk 0:00:19]}  Nxd3 {[%clk 0:00:29]} 41. f4 {[%clk 0:00:19]}  g4 {[%clk 0:00:28]} 42. h3 {[%clk 0:00:19]}  Kg6 {[%clk 0:00:27]} 43. hxg4 {[%clk 0:00:19]}  fxg4 {[%clk 0:00:28]} 44. f5+ {[%clk 0:00:15]}  Kxh5 {[%clk 0:00:27]} 45. Kf1 {[%clk 0:00:15]}  Kg5 {[%clk 0:00:27]} 46. Ke2 {[%clk 0:00:12]}  Ne5 {[%clk 0:00:28]} 0-1


[Site "https://www.chess.com"]

[Event "Titled Tuesday Blitz October 31 Late 2023"]
[White "Rangel, Daniel"]
[Black "Broca Jimenez, Fernando"]
[WhiteFideId "2124475"]
[BlackFideId "5104742"]
[WhiteElo "2456"]
[BlackElo "2243"]
[Result "1-0"]
[Round "2"]
[TimeControl "180+1"]
[Date "2023.10.31"]
[WhiteClock "0:00:09"]
[BlackClock "0:00:27"]
[Board "147"]

1. c4 {[%clk 0:02:59]}  g6 {[%clk 0:02:57]} 2. Nc3 {[%clk 0:02:48]}  Bg7 {[%clk 0:02:58]} 3. d4 {[%clk 0:02:48]}  Nf6 {[%clk 0:02:57]} 4. e4 {[%clk 0:02:48]}  d6 {[%clk 0:02:57]} 5. Nf3 {[%clk 0:02:47]}  O-O {[%clk 0:02:58]} 6. Be2 {[%clk 0:02:48]}  e5 {[%clk 0:02:55]} 7. O-O {[%clk 0:02:49]}  Nc6 {[%clk 0:02:54]} 8. d5 {[%clk 0:02:46]}  Ne7 {[%clk 0:02:54]} 9. Bd2 {[%clk 0:02:47]}  Nh5 {[%clk 0:02:48]} 10. Rc1 {[%clk 0:02:48]}  f5 {[%clk 0:02:48]} 11. Ne1 {[%clk 0:02:43]}  Nf4 {[%clk 0:02:44]} 12. Bf3 {[%clk 0:02:43]}  fxe4 {[%clk 0:02:41]} 13. Nxe4 {[%clk 0:02:43]}  h6 {[%clk 0:02:39]} 14. Bg4 {[%clk 0:02:34]}  Nf5 {[%clk 0:02:35]} 15. g3 {[%clk 0:02:27]}  Nh5 {[%clk 0:02:28]} 16. Bxh5 {[%clk 0:02:23]}  gxh5 {[%clk 0:02:29]} 17. Qxh5 {[%clk 0:02:23]}  Nd4 {[%clk 0:02:25]} 18. Bxh6 {[%clk 0:02:18]}  Bxh6 {[%clk 0:02:24]} 19. Qxh6 {[%clk 0:02:18]}  Ne2+ {[%clk 0:02:17]} 20. Kg2 {[%clk 0:02:17]}  Nxc1 {[%clk 0:02:18]} 21. Qg6+ {[%clk 0:02:15]}  Kh8 {[%clk 0:02:16]} 22. Qh6+ {[%clk 0:02:01]}  Kg8 {[%clk 0:02:15]} 23. Qxc1 {[%clk 0:02:01]}  Bf5 {[%clk 0:02:12]} 24. Ng5 {[%clk 0:01:59]}  Qf6 {[%clk 0:02:07]} 25. h4 {[%clk 0:01:58]}  Rae8 {[%clk 0:02:04]} 26. Nc2 {[%clk 0:01:58]}  Bxc2 {[%clk 0:02:02]} 27. Qxc2 {[%clk 0:01:59]}  e4 {[%clk 0:02:02]} 28. Qe2 {[%clk 0:01:50]}  Re5 {[%clk 0:01:44]} 29. Qg4 {[%clk 0:01:45]}  Qf5 {[%clk 0:01:43]} 30. Qxf5 {[%clk 0:01:42]}  Rfxf5 {[%clk 0:01:39]} 31. Re1 {[%clk 0:01:42]}  Kg7 {[%clk 0:01:38]} 32. Rxe4 {[%clk 0:01:30]}  Rxg5 {[%clk 0:01:34]} 33. Rd4 {[%clk 0:01:19]}  Rgf5 {[%clk 0:01:31]} 34. Rd2 {[%clk 0:01:18]}  Re4 {[%clk 0:01:30]} 35. b3 {[%clk 0:01:14]}  Rfe5 {[%clk 0:01:28]} 36. Kf3 {[%clk 0:01:02]}  Re1 {[%clk 0:01:28]} 37. g4 {[%clk 0:00:58]}  Kg6 {[%clk 0:01:23]} 38. h5+ {[%clk 0:00:48]}  Kf6 {[%clk 0:01:17]} 39. Kg3 {[%clk 0:00:43]}  Rg1+ {[%clk 0:01:17]} 40. Kf4 {[%clk 0:00:43]}  Rg2 {[%clk 0:01:11]} 41. Kf3 {[%clk 0:00:39]}  Rg1 {[%clk 0:01:09]} 42. Kf4 {[%clk 0:00:39]}  Ree1 {[%clk 0:01:06]} 43. f3 {[%clk 0:00:36]}  Re5 {[%clk 0:01:03]} 44. Rh2 {[%clk 0:00:34]}  Kg7 {[%clk 0:01:02]} 45. Rc2 {[%clk 0:00:30]}  Ree1 {[%clk 0:00:58]} 46. Rh2 {[%clk 0:00:20]}  Rd1 {[%clk 0:00:55]} 47. g5 {[%clk 0:00:15]}  Rgf1 {[%clk 0:00:41]} 48. h6+ {[%clk 0:00:12]}  Kh7 {[%clk 0:00:40]} 49. g6+ {[%clk 0:00:10]}  Kxg6 {[%clk 0:00:34]} 50. h7 {[%clk 0:00:11]}  Rd4+ {[%clk 0:00:34]} 51. Ke3 {[%clk 0:00:10]}  Rh1 {[%clk 0:00:27]} 52. Rxh1 {[%clk 0:00:09]} 1-0


[Site "https://www.chess.com"]

[Event "Titled Tuesday Blitz October 31 Late 2023"]
[White "Rakitic2010"]
[Black "Bullen, Alex"]
[BlackFideId "1801627"]
[WhiteElo "2453"]
[BlackElo "2235"]
[Result "1-0"]
[Round "2"]
[TimeControl "180+1"]
[Date "2023.10.31"]
[WhiteClock "0:00:05"]
[BlackClock "0:00:00"]
[Board "149"]

1. e4 {[%clk 0:03:00]}  c6 {[%clk 0:02:57]} 2. Nf3 {[%clk 0:02:59]}  d5 {[%clk 0:02:58]} 3. exd5 {[%clk 0:03:00]}  cxd5 {[%clk 0:02:58]} 4. Ne5 {[%clk 0:03:01]}  Nc6 {[%clk 0:02:57]} 5. d4 {[%clk 0:03:01]}  Nf6 {[%clk 0:02:56]} 6. Bb5 {[%clk 0:03:01]}  Bd7 {[%clk 0:02:55]} 7. Bxc6 {[%clk 0:03:01]}  Bxc6 {[%clk 0:02:55]} 8. Nc3 {[%clk 0:03:01]}  g6 {[%clk 0:02:52]} 9. O-O {[%clk 0:03:01]}  Bg7 {[%clk 0:02:53]} 10. Re1 {[%clk 0:02:59]}  O-O {[%clk 0:02:52]} 11. Bg5 {[%clk 0:03:00]}  e6 {[%clk 0:02:35]} 12. Qf3 {[%clk 0:02:58]}  h6 {[%clk 0:02:30]} 13. Bxf6 {[%clk 0:02:56]}  Qxf6 {[%clk 0:02:25]} 14. Qg3 {[%clk 0:02:53]}  Qf5 {[%clk 0:02:17]} 15. Re2 {[%clk 0:02:43]}  Bxe5 {[%clk 0:02:11]} 16. Qxe5 {[%clk 0:02:42]}  Qxe5 {[%clk 0:02:10]} 17. Rxe5 {[%clk 0:02:41]}  b5 {[%clk 0:02:06]} 18. Ne2 {[%clk 0:02:21]}  b4 {[%clk 0:02:02]} 19. Nf4 {[%clk 0:02:20]}  Ba4 {[%clk 0:01:52]} 20. b3 {[%clk 0:02:15]}  Bb5 {[%clk 0:01:51]} 21. a4 {[%clk 0:02:12]}  Bd7 {[%clk 0:01:45]} 22. Nd3 {[%clk 0:02:11]}  a5 {[%clk 0:01:41]} 23. Rae1 {[%clk 0:02:07]}  Rac8 {[%clk 0:01:38]} 24. Nc5 {[%clk 0:02:07]}  Rc7 {[%clk 0:01:36]} 25. f4 {[%clk 0:02:02]}  Rfc8 {[%clk 0:01:35]} 26. Kf2 {[%clk 0:02:00]}  Kg7 {[%clk 0:01:33]} 27. R1e2 {[%clk 0:01:59]}  Be8 {[%clk 0:01:32]} 28. g4 {[%clk 0:01:58]}  Rc6 {[%clk 0:01:28]} 29. g5 {[%clk 0:01:56]}  h5 {[%clk 0:01:26]} 30. h4 {[%clk 0:01:55]}  Kf8 {[%clk 0:01:25]} 31. Ke3 {[%clk 0:01:54]}  Ke7 {[%clk 0:01:21]} 32. Kd2 {[%clk 0:01:54]}  Kd6 {[%clk 0:01:04]} 33. Kc1 {[%clk 0:01:32]}  Kc7 {[%clk 0:00:58]} 34. Kb2 {[%clk 0:01:32]}  Kb6 {[%clk 0:00:55]} 35. R5e3 {[%clk 0:01:31]}  R8c7 {[%clk 0:00:45]} 36. Rd3 {[%clk 0:01:27]}  Rc8 {[%clk 0:00:44]} 37. Red2 {[%clk 0:01:27]}  R8c7 {[%clk 0:00:44]} 38. Rg3 {[%clk 0:01:25]}  Rc8 {[%clk 0:00:43]} 39. Rgg2 {[%clk 0:01:24]}  R8c7 {[%clk 0:00:43]} 40. Rgf2 {[%clk 0:01:24]}  Rc8 {[%clk 0:00:44]} 41. Rd1 {[%clk 0:01:24]}  R8c7 {[%clk 0:00:44]} 42. Rc1 {[%clk 0:01:25]}  Rc8 {[%clk 0:00:44]} 43. Rf3 {[%clk 0:01:24]}  R8c7 {[%clk 0:00:44]} 44. Re3 {[%clk 0:01:24]}  Rc8 {[%clk 0:00:44]} 45. Kb1 {[%clk 0:01:17]}  R8c7 {[%clk 0:00:44]} 46. Ree1 {[%clk 0:01:16]}  Bd7 {[%clk 0:00:42]} 47. Re3 {[%clk 0:01:10]}  Bc8 {[%clk 0:00:43]} 48. Kb2 {[%clk 0:01:09]}  Ba6 {[%clk 0:00:43]} 49. c3 {[%clk 0:00:40]}  bxc3+ {[%clk 0:00:30]} 50. Rcxc3 {[%clk 0:00:36]}  Ka7 {[%clk 0:00:29]} 51. Re1 {[%clk 0:00:34]}  Rc8 {[%clk 0:00:20]} 52. Rec1 {[%clk 0:00:33]}  Be2 {[%clk 0:00:17]} 53. R1c2 {[%clk 0:00:29]}  Bg4 {[%clk 0:00:17]} 54. Ka3 {[%clk 0:00:28]}  Bf5 {[%clk 0:00:17]} 55. Rc1 {[%clk 0:00:28]}  R8c7 {[%clk 0:00:16]} 56. b4 {[%clk 0:00:20]}  axb4+ {[%clk 0:00:16]} 57. Kxb4 {[%clk 0:00:21]}  Rb6+ {[%clk 0:00:16]} 58. Ka3 {[%clk 0:00:21]}  Rc8 {[%clk 0:00:15]} 59. Nd7 {[%clk 0:00:19]}  Rxc3+ {[%clk 0:00:13]} 60. Rxc3 {[%clk 0:00:19]}  Rb7 {[%clk 0:00:12]} 61. Ne5 {[%clk 0:00:18]}  Be4 {[%clk 0:00:11]} 62. Nc6+ {[%clk 0:00:13]}  Ka6 {[%clk 0:00:10]} 63. Ne5 {[%clk 0:00:12]}  Ka5 {[%clk 0:00:10]} 64. Rc5+ {[%clk 0:00:10]}  Ka6 {[%clk 0:00:10]} 65. Rc6+ {[%clk 0:00:11]}  Ka5 {[%clk 0:00:10]} 66. Rc5+ {[%clk 0:00:08]}  Ka6 {[%clk 0:00:10]} 67. Nc6 {[%clk 0:00:08]}  Bg2 {[%clk 0:00:05]} 68. Nb4+ {[%clk 0:00:06]}  Ka7 {[%clk 0:00:05]} 69. Ra5+ {[%clk 0:00:06]}  Kb8 {[%clk 0:00:05]} 70. Rb5 {[%clk 0:00:07]}  Rxb5 {[%clk 0:00:04]} 71. axb5 {[%clk 0:00:08]}  Kb7 {[%clk 0:00:04]} 72. Nc6 {[%clk 0:00:06]}  Bf1 {[%clk 0:00:04]} 73. Kb4 {[%clk 0:00:05]}  Kb6 {[%clk 0:00:04]} 74. Ne5 {[%clk 0:00:05]}  Bxb5 {[%clk 0:00:04]} 75. Nxf7 {[%clk 0:00:05]}  Bd3 {[%clk 0:00:04]} 76. Ne5 {[%clk 0:00:05]}  Bf5 {[%clk 0:00:03]} 77. Nd7+ {[%clk 0:00:05]}  Kc7 {[%clk 0:00:03]} 78. Nc5 {[%clk 0:00:04]}  Kb6 {[%clk 0:00:03]} 79. Nd7+ {[%clk 0:00:04]}  Kc6 {[%clk 0:00:03]} 80. Ne5+ {[%clk 0:00:05]}  Kb6 {[%clk 0:00:03]} 81. Nf7 {[%clk 0:00:05]}  Kc6 {[%clk 0:00:03]} 82. Ka5 {[%clk 0:00:05]}  Be4 {[%clk 0:00:00]} 83. Ne5+ {[%clk 0:00:05]} 1-0


[Site "https://www.chess.com"]